{"text_format":"1","workbook":"xlsx","n_sheets":3,"sheets":["Listă inventar","Listă selecții inventar","Căutare coș"],"not_rendered":{"charts":0,"images":0,"macros":1,"external_links":0,"defined_names":8,"comments":0,"pivot_tables":0},"unopened":[],"bounds":{"document_bytes":16777216,"sheet_cells":100000,"rows_first":2000,"rows_last":500,"rows_between":2000,"halvings":0,"cell_chars":16384,"cell_head_chars":4096},"cells_cut":0,"cells_raw":0,"read":"whole","date_system":"1900"}

{"sheet":"Listă inventar","index":0,"n_rows":15,"n_cols":11,"rows_kept":15,"cut":false,"hidden":false,"merged":[]}
[null,"LISTĂ INVENTAR"]
[null,"VALOARE TOTALĂ INVENTAR:","ARTICOLE INVENTAR:","NUMĂR COȘ:","LISTĂ SELECȚII INVENTAR","CĂUTARE COȘ"]
[null,{"$f":"SUM(ListăInventar[VALOARE INVENTAR])","v":4649},{"$f":"COUNTA(ListăInventar[DESCRIERE])","v":11},{"$f":"SUMPRODUCT((1/COUNTIF(ListăInventar[NR. COȘ],ListăInventar[NR. COȘ]&\"\")))","v":6}]
[null,"SKU","DESCRIERE","NR. COȘ","LOCAȚIE","UNITATE","CANTITATE","CANTITATE COMANDĂ REPETATĂ","COST","VALOARE INVENTAR","COMANDĂ REPETATĂ"]
[null,"SP7875","Articolul 1","T345",{"$f":"IFERROR(VLOOKUP(ListăInventar[[#This Row],[NR. COȘ]],CăutareCoș[],3,FALSE),\"\")","v":"Rândul 2, slotul 1"},"Bucată",20,10,30,{"$f":"ListăInventar[[#This Row],[CANTITATE]]*ListăInventar[[#This Row],[COST]]","v":600},{"$f":"IFERROR(IF(ListăInventar[[#This Row],[CANTITATE]]<=ListăInventar[[#This Row],[CANTITATE COMANDĂ REPETATĂ]],1,0),0)","v":0}]
[null,"TR87680","Articolul 2","T345",{"$f":"IFERROR(VLOOKUP(ListăInventar[[#This Row],[NR. COȘ]],CăutareCoș[],3,FALSE),\"\")","v":"Rândul 2, slotul 1"},"Bucată",30,15,40,{"$f":"ListăInventar[[#This Row],[CANTITATE]]*ListăInventar[[#This Row],[COST]]","v":1200},{"$f":"IFERROR(IF(ListăInventar[[#This Row],[CANTITATE]]<=ListăInventar[[#This Row],[CANTITATE COMANDĂ REPETATĂ]],1,0),0)","v":0}]
[null,"MK676554","Articolul 3","T5789",{"$f":"IFERROR(VLOOKUP(ListăInventar[[#This Row],[NR. COȘ]],CăutareCoș[],3,FALSE),\"\")","v":"Rândul 1, slotul 1"},"Bucată",10,5,5,{"$f":"ListăInventar[[#This Row],[CANTITATE]]*ListăInventar[[#This Row],[COST]]","v":50},{"$f":"IFERROR(IF(ListăInventar[[#This Row],[CANTITATE]]<=ListăInventar[[#This Row],[CANTITATE COMANDĂ REPETATĂ]],1,0),0)","v":0}]
[null,"YE98767","Articolul 4","T9876",{"$f":"IFERROR(VLOOKUP(ListăInventar[[#This Row],[NR. COȘ]],CăutareCoș[],3,FALSE),\"\")","v":"Rândul 3, slotul 2"},"Cutie (10 bucăți)",40,10,15,{"$f":"ListăInventar[[#This Row],[CANTITATE]]*ListăInventar[[#This Row],[COST]]","v":600},{"$f":"IFERROR(IF(ListăInventar[[#This Row],[CANTITATE]]<=ListăInventar[[#This Row],[CANTITATE COMANDĂ REPETATĂ]],1,0),0)","v":0}]
[null,"XR23423","Articolul 5","T098",{"$f":"IFERROR(VLOOKUP(ListăInventar[[#This Row],[NR. COȘ]],CăutareCoș[],3,FALSE),\"\")","v":"Rândul 3, slotul 1"},"Bucată",12,10,26,{"$f":"ListăInventar[[#This Row],[CANTITATE]]*ListăInventar[[#This Row],[COST]]","v":312},{"$f":"IFERROR(IF(ListăInventar[[#This Row],[CANTITATE]]<=ListăInventar[[#This Row],[CANTITATE COMANDĂ REPETATĂ]],1,0),0)","v":0}]
[null,"PW98762","Articolul 6","T345",{"$f":"IFERROR(VLOOKUP(ListăInventar[[#This Row],[NR. COȘ]],CăutareCoș[],3,FALSE),\"\")","v":"Rândul 2, slotul 1"},"Bucată",7,10,50,{"$f":"ListăInventar[[#This Row],[CANTITATE]]*ListăInventar[[#This Row],[COST]]","v":350},{"$f":"IFERROR(IF(ListăInventar[[#This Row],[CANTITATE]]<=ListăInventar[[#This Row],[CANTITATE COMANDĂ REPETATĂ]],1,0),0)","v":1}]
[null,"BM87684","Articolul 7","T349",{"$f":"IFERROR(VLOOKUP(ListăInventar[[#This Row],[NR. COȘ]],CăutareCoș[],3,FALSE),\"\")","v":"Rândul 1, slotul 2"},"Bucată",10,5,10,{"$f":"ListăInventar[[#This Row],[CANTITATE]]*ListăInventar[[#This Row],[COST]]","v":100},{"$f":"IFERROR(IF(ListăInventar[[#This Row],[CANTITATE]]<=ListăInventar[[#This Row],[CANTITATE COMANDĂ REPETATĂ]],1,0),0)","v":0}]
[null,"BH67655","Articolul 8","T5789",{"$f":"IFERROR(VLOOKUP(ListăInventar[[#This Row],[NR. COȘ]],CăutareCoș[],3,FALSE),\"\")","v":"Rândul 1, slotul 1"},"Bucată",19,10,3,{"$f":"ListăInventar[[#This Row],[CANTITATE]]*ListăInventar[[#This Row],[COST]]","v":57},{"$f":"IFERROR(IF(ListăInventar[[#This Row],[CANTITATE]]<=ListăInventar[[#This Row],[CANTITATE COMANDĂ REPETATĂ]],1,0),0)","v":0}]
[null,"WT98768","Articolul 9","T9875",{"$f":"IFERROR(VLOOKUP(ListăInventar[[#This Row],[NR. COȘ]],CăutareCoș[],3,FALSE),\"\")","v":"Rândul 2, slotul 2"},"Pachet (5 bucăți)",20,30,14,{"$f":"ListăInventar[[#This Row],[CANTITATE]]*ListăInventar[[#This Row],[COST]]","v":280},{"$f":"IFERROR(IF(ListăInventar[[#This Row],[CANTITATE]]<=ListăInventar[[#This Row],[CANTITATE COMANDĂ REPETATĂ]],1,0),0)","v":1}]
[null,"TS3456","Articolul 10","T349",{"$f":"IFERROR(VLOOKUP(ListăInventar[[#This Row],[NR. COȘ]],CăutareCoș[],3,FALSE),\"\")","v":"Rândul 1, slotul 2"},"Bucată",15,8,60,{"$f":"ListăInventar[[#This Row],[CANTITATE]]*ListăInventar[[#This Row],[COST]]","v":900},{"$f":"IFERROR(IF(ListăInventar[[#This Row],[CANTITATE]]<=ListăInventar[[#This Row],[CANTITATE COMANDĂ REPETATĂ]],1,0),0)","v":0}]
[null,"WDG123","Articolul 11","T349",{"$f":"IFERROR(VLOOKUP(ListăInventar[[#This Row],[NR. COȘ]],CăutareCoș[],3,FALSE),\"\")","v":"Rândul 1, slotul 2"},"Bucată",25,15,8,{"$f":"ListăInventar[[#This Row],[CANTITATE]]*ListăInventar[[#This Row],[COST]]","v":200},{"$f":"IFERROR(IF(ListăInventar[[#This Row],[CANTITATE]]<=ListăInventar[[#This Row],[CANTITATE COMANDĂ REPETATĂ]],1,0),0)","v":0}]

{"sheet":"Listă selecții inventar","index":1,"n_rows":9,"n_cols":9,"rows_kept":9,"cut":false,"hidden":false,"merged":[]}
[null,"LISTĂ SELECȚII INVENTAR"]
[null,null,"LISTĂ INVENTAR"]
[]
[null,"NR. COMANDĂ","SKU","CANTITATE SELECTATĂ","CANTITATE DISPONIBILĂ","DESCRIERE ELEMENT","UNITATE","NR. COȘ","LOCAȚIE"]
[null,"TP001-1","SP7875",3,{"$f":"IFERROR(VLOOKUP(InventoryPickList[[#This Row],[SKU]],ListăInventar[],6,FALSE),\"\")","v":20},{"$f":"IFERROR(VLOOKUP(InventoryPickList[[#This Row],[SKU]],ListăInventar[],2,FALSE),\"\")","v":"Articolul 1"},{"$f":"IFERROR(VLOOKUP(InventoryPickList[[#This Row],[SKU]],ListăInventar[],5,FALSE),\"\")","v":"Bucată"},{"$f":"IFERROR(VLOOKUP(InventoryPickList[[#This Row],[SKU]],ListăInventar[],3,FALSE),\"\")","v":"T345"},{"$f":"IFERROR(VLOOKUP(InventoryPickList[[#This Row],[SKU]],ListăInventar[],4,FALSE),\"\")","v":"Rândul 2, slotul 1"}]
[null,"TP001-1","YE98767",1,{"$f":"IFERROR(VLOOKUP(InventoryPickList[[#This Row],[SKU]],ListăInventar[],6,FALSE),\"\")","v":40},{"$f":"IFERROR(VLOOKUP(InventoryPickList[[#This Row],[SKU]],ListăInventar[],2,FALSE),\"\")","v":"Articolul 4"},{"$f":"IFERROR(VLOOKUP(InventoryPickList[[#This Row],[SKU]],ListăInventar[],5,FALSE),\"\")","v":"Cutie (10 bucăți)"},{"$f":"IFERROR(VLOOKUP(InventoryPickList[[#This Row],[SKU]],ListăInventar[],3,FALSE),\"\")","v":"T9876"},{"$f":"IFERROR(VLOOKUP(InventoryPickList[[#This Row],[SKU]],ListăInventar[],4,FALSE),\"\")","v":"Rândul 3, slotul 2"}]
[null,"TP001-1","BM87684",2,{"$f":"IFERROR(VLOOKUP(InventoryPickList[[#This Row],[SKU]],ListăInventar[],6,FALSE),\"\")","v":10},{"$f":"IFERROR(VLOOKUP(InventoryPickList[[#This Row],[SKU]],ListăInventar[],2,FALSE),\"\")","v":"Articolul 7"},{"$f":"IFERROR(VLOOKUP(InventoryPickList[[#This Row],[SKU]],ListăInventar[],5,FALSE),\"\")","v":"Bucată"},{"$f":"IFERROR(VLOOKUP(InventoryPickList[[#This Row],[SKU]],ListăInventar[],3,FALSE),\"\")","v":"T349"},{"$f":"IFERROR(VLOOKUP(InventoryPickList[[#This Row],[SKU]],ListăInventar[],4,FALSE),\"\")","v":"Rândul 1, slotul 2"}]
[null,"TP001-1","TS3456",6,{"$f":"IFERROR(VLOOKUP(InventoryPickList[[#This Row],[SKU]],ListăInventar[],6,FALSE),\"\")","v":15},{"$f":"IFERROR(VLOOKUP(InventoryPickList[[#This Row],[SKU]],ListăInventar[],2,FALSE),\"\")","v":"Articolul 10"},{"$f":"IFERROR(VLOOKUP(InventoryPickList[[#This Row],[SKU]],ListăInventar[],5,FALSE),\"\")","v":"Bucată"},{"$f":"IFERROR(VLOOKUP(InventoryPickList[[#This Row],[SKU]],ListăInventar[],3,FALSE),\"\")","v":"T349"},{"$f":"IFERROR(VLOOKUP(InventoryPickList[[#This Row],[SKU]],ListăInventar[],4,FALSE),\"\")","v":"Rândul 1, slotul 2"}]
[null,"TP001-1","MK676554",3,{"$f":"IFERROR(VLOOKUP(InventoryPickList[[#This Row],[SKU]],ListăInventar[],6,FALSE),\"\")","v":10},{"$f":"IFERROR(VLOOKUP(InventoryPickList[[#This Row],[SKU]],ListăInventar[],2,FALSE),\"\")","v":"Articolul 3"},{"$f":"IFERROR(VLOOKUP(InventoryPickList[[#This Row],[SKU]],ListăInventar[],5,FALSE),\"\")","v":"Bucată"},{"$f":"IFERROR(VLOOKUP(InventoryPickList[[#This Row],[SKU]],ListăInventar[],3,FALSE),\"\")","v":"T5789"},{"$f":"IFERROR(VLOOKUP(InventoryPickList[[#This Row],[SKU]],ListăInventar[],4,FALSE),\"\")","v":"Rândul 1, slotul 1"}]

{"sheet":"Căutare coș","index":2,"n_rows":11,"n_cols":7,"rows_kept":11,"cut":false,"hidden":false,"merged":[]}
[null,"CĂUTARE COȘ"]
[null,"LISTĂ INVENTAR"]
[]
[null,"NR. COȘ","DESCRIERE","LOCAȚIE","LĂȚIME","ÎNĂLȚIME","LUNGIME"]
[null,"T345","Coș mare","Rândul 2, slotul 1",50,10,10]
[null,"T5789","Coș mic","Rândul 1, slotul 1",25,5,5]
[null,"T9876","Coș mare","Rândul 3, slotul 2",50,10,10]
[null,"T098","Coș mediu","Rândul 3, slotul 1",30,7,10]
[null,"T349","Coș mic","Rândul 1, slotul 2",25,5,5]
[null,"T5789","Coș mare","Rândul 4, slotul 5",50,10,10]
[null,"T9875","Coș mare","Rândul 2, slotul 2",50,10,10]